Cogmind - Beta 13 @@@ ROGUE MODE // 2024.07.10 @ 11:14:52 Player: APerTAS Result: Destroyed by Z-Imprinter with Zionite Laser-M Performance ------------- Evolutions (1) 500 Regions Visited (5) 1000 Robots Destroyed (45) 225 Value Destroyed (843) 843 Prototype IDs (2) 40 Alien Tech Used (0) 0 Bonus (600) 600 TOTAL SCORE: 3208 Bonus ------- Met Imprinter 300 Was Imprinted 300 Cogmind --------- Core Integrity 0/400 Matter 300/300 Energy 280/280 System Corruption 0% Temperature Cool (27) Movement Core (500) Ox9 Location -7/Deep Caves Parts ------- > --- POWER (1) -------- Heavy Ion Engine > --- PROPULSION (2) --- (None) > --- UTILITY (2) ------ Large Storage Unit > --- WEAPON (4) ------- (None) > --- INVENTORY (15) --- Ion Engine Improved Ion Engine Heat Sink Compact Battery (200) Improved Sensor Array Advanced Signal Interpreter Improved Terrain Scanner Improved Targeting Computer Advanced ECM Suite Advanced Hacking Suite Hacking Drone Bay (1/1) Shotgun Plasma Cutter Peak State ------------ > --- POWER ------------ Heavy Ion Engine > --- PROPULSION ------- Improved Treads Improved Treads > --- UTILITY ---------- Large Storage Unit Hacking Drone Bay > --- WEAPON ----------- Beam Rifle Light Assault Rifle Autogun Light Cannon > --- INVENTORY -------- Ion Engine Improved Ion Engine Improved Treads Heat Sink Compact Battery Improved Sensor Array Advanced Signal Interpreter Improved Terrain Scanner Improved Targeting Computer Advanced ECM Suite Light Armor Plating Advanced Hacking Suite Shotgun Plasma Cutter [Rating: 26] Favorites ----------- Power Heavy Ion Engine Engine Heavy Ion Engine Power Core Light Nuclear Core Propulsion Improved Treads Treads Improved Treads Wheel Wheel Utility Large Storage Unit Device Improved Sensor Array Storage Large Storage Unit Processor Signal Interpreter Protection Medium Armor Plating Weapon Light Assault Rifle Energy Gun Beam Rifle Ballistic Gun Light Assault Rifle Ballistic Cannon Light Cannon Special Weapon Plasma Cutter Build | -11 -10 -9 -9 -7 -7 ------- Run | Yrd Mat Mat Min Zio Dee Slots Evolved 2 | . . 2 . . . Power . | . . . . . . Propulsion . | . . . . . . Utility . | . . . . . . Weapon 2 | . . 2 . . . Parts Attached 40 | 5 6 18 6 3 2 Power 5 | 1 1 3 . . . Engine 4 | 1 1 2 . . . Core 1 | . . 1 . . . Reactor . | . . . . . . Propulsion 10 | 2 1 3 2 1 1 Treads 8 | . 1 3 2 1 1 Leg . | . . . . . . Wheel 2 | 2 . . . . . Hover . | . . . . . . Flight . | . . . . . . Utility 11 | . 3 4 1 2 1 Device 5 | . 1 2 . 2 . Storage 2 | . 2 . . . . Processor 2 | . . 1 1 . . Hackware . | . . . . . . Protection 2 | . . 1 . . 1 Artifact . | . . . . . . Weapon 14 | 2 1 8 3 . . Energy Gun 2 | . . 2 . . . Energy Cannon . | . . . . . . Ballistic Gun 9 | 2 1 5 1 . . Ballistic Cannon 2 | . . 1 1 . . Launcher . | . . . . . . Special Weapon 1 | . . . 1 . . Impact Weapon . | . . . . . . Slashing Weapon . | . . . . . . Piercing Weapon . | . . . . . . Special Melee Weapon . | . . . . . . Unidentified Prototypes 2 | . . 1 . 1 . Parts Lost 13 | . 2 2 1 . 8 Power 1 | . . 1 . . . Propulsion 4 | . 1 . . . 3 Utility 3 | . 1 1 . . 1 Weapon 5 | . . . 1 . 4 Highest Loss Streak 8 | . 1 1 1 . 8 To Critical Strikes . | . . . . . . Average Slot Usage (%) 95 | . 82 92 99 100 97 Engine 10 | . 14 6 11 11 11 Treads 19 | . 7 19 21 22 21 Wheel 1 | . 11 . . . . Device 4 | . 8 . 10 2 10 Storage 11 | . 12 11 11 11 11 Processor 4 | . . 1 . 8 . Protection 1 | . . 8 . . . Energy Gun 8 | . . 5 11 11 10 Ballistic Gun 23 | . 28 23 21 22 21 Ballistic Cannon 9 | . . 10 10 11 10 Naked Turns . | . . . . . . Heaviest Build 43 | 9 32 43 39 39 39 Greatest Support 46 | 20 20 46 46 46 46 Greatest Overweight (x) 9 | . 3 2 1 . 9 Average Overweight (x) . | . 1 . . . . Largest Inventory Capacity 15 | 5 15 15 15 15 15 Average Capacity 14 | 5 13 15 15 15 15 Most Carried 15 | 4 8 15 15 15 14 Average Carried 12 | 2 5 10 14 14 13 Final Capacity 15 | 5 15 15 15 15 15 Final Carried 15 | 3 8 14 15 14 13 Class Distribution -------------------- 49% | Gunner 19% | Skirmisher 15% | Mutant 14% | Tank Dominant Class ---------------- Mutant | -10/Materials Tank | -9/Materials Gunner | -9/Mines Gunner | -7/Zion Skirmisher | -7/Deep Caves Resources | -11 -10 -9 -9 -7 -7 ----------- Run | Yrd Mat Mat Min Zio Dee Matter Collected 1441 | 250 500 466 138 40 47 Remotely . | . . . . . . Salvage Created 1325 | . 599 554 130 . 42 Parts 94 | . 45 42 5 . 2 Haulers Intercepted 1 | . . 1 . . . Recyclers Shooed 7 | . 7 . . . . Parts Field Recycled . | . . . . . . Retrieved Matter . | . . . . . . Parts Self-Destructed 2 | . . . . 2 . Prevented . | . . . . . . Kills | -11 -10 -9 -9 -7 -7 ------- Run | Yrd Mat Mat Min Zio Dee Combat Hostiles Destroyed 32 | . 10 13 6 . 3 Guns 24 | . 10 9 3 . 2 Cannons 8 | . . 4 3 . 1 Classes Destroyed 12 | . 8 3 1 . . Worker 6 | . 3 3 . . . Builder 1 | . 1 . . . . Tunneler 1 | . 1 . . . . Hauler 1 | . . 1 . . . Recycler 2 | . 2 . . . . Mechanic 1 | . . 1 . . . Operator 1 | . 1 . . . . Watcher 6 | . 3 3 . . . Swarmer 11 | . 5 6 . . . Grunt 12 | . 5 4 3 . . Sentry 3 | . . 3 . . . Z-Technician 1 | . . . . . 1 Assembled 6 | . . . 3 . 3 Best Kill Streak 8 | . 4 8 3 . 3 Combat Bots Only 4 | . 3 4 3 . 3 Max Kills in Single Turn 2 | . 1 2 1 . 1 Gunslinging . | . . . . . . Exploded . | . . . . . . Melee . | . . . . . . Uniques/NPCs Destroyed . | . . . . . . Combat | -11 -10 -9 -9 -7 -7 -------- Run | Yrd Mat Mat Min Zio Dee Hostile Shots Fired 231 | . 96 71 12 . 52 Missed 76 | . 39 22 5 . 10 Damage Taken 2395 | . 455 573 177 . 1190 Core 508 | . 101 63 47 . 297 Absorbed by Shields 103 | . 103 . . . . Core Remaining (%) 79 | 100 59 . . . . Volleys Fired 154 | . 87 40 20 . 7 Largest 4 | . 2 4 4 . 4 Hottest 134 | . 43 131 131 . 134 Shots Fired 375 | . 158 126 63 . 28 Gun 308 | . 158 86 43 . 21 Cannon 62 | . . 40 15 . 7 Launcher . | . . . . . . Special 5 | . . . 5 . . Kinetic 326 | . 158 104 43 . 21 Thermal 49 | . . 22 20 . 7 Explosive . | . . . . . . Electromagnetic . | . . . . . . Robot Hit Streak 9 | . 9 9 5 . 6 Robot Miss Streak 9 | . 9 5 3 . 2 Penetration Max . | . . . . . . Secondary Targets . | . . . . . . Shots Hit Robots 193 | . 94 57 27 . 15 Core Hits 86 | . 35 32 12 . 7 Critical Kills . | . . . . . . Critical Parts Destroyed . | . . . . . . Critical Strikes 3 | . . 2 1 . . Burn 3 | . . 2 1 . . Melee Attacks . | . . . . . . Impact . | . . . . . . Slashing . | . . . . . . Piercing . | . . . . . . Sneak Attacks . | . . . . . . Combat Hostiles . | . . . . . . Follow-up Attacks . | . . . . . . Damage Inflicted 2591 | . 1239 826 328 . 198 Guns 2023 | . 1231 444 202 . 146 Cannons 555 | . . 377 126 . 52 Explosions . | . . . . . . Melee . | . . . . . . Ramming 13 | . 8 5 . . . Kinetic 2269 | . 1231 640 242 . 156 Thermal 309 | . . 181 86 . 42 Explosive . | . . . . . . Electromagnetic . | . . . . . . Impact . | . . . . . . Slashing . | . . . . . . Piercing . | . . . . . . Highest Corruption . | . . . . . . Average Corruption . | . . . . . . Corruption Purged . | . . . . . . Corruption Blocked . | . . . . . . Overload Shots . | . . . . . . Overflow Damage . | . . . . . . Projectiles . | . . . . . . Explosions . | . . . . . . Melee . | . . . . . . Knockbacks 4 | . . 2 2 . . Impact . | . . . . . . Kinetic 4 | . . 2 2 . . Secondary . | . . . . . . Self-Inflicted Damage . | . . . . . . Shots . | . . . . . . Rammed 5 | . 4 1 . . . Targets Rammed 5 | . 4 1 . . . Kicked . | . . . . . . Crushed . | . . . . . . Highest Temperature 372 | . 10 372 100 . 288 Average Temperature 107 | . 10 133 39 . 99 Received Heat Transfer 621 | . 150 144 12 . 315 Effects 3 | . . 2 . . 1 Interference 3 | . . 2 . . 1 Siege Activations . | . . . . . . Robots Corrupted . | . . . . . . Combat Hostiles . | . . . . . . Parts Fried . | . . . . . . Impact Corruptions . | . . . . . . Robots Melted . | . . . . . . Combat Hostiles . | . . . . . . Parts Melted 2 | . . 2 . . . Heat Transferred 1012 | . . 605 296 . 111 Parts Sabotaged . | . . . . . . Parts Stolen . | . . . . . . Parts Stripped . | . . . . . . Power Chain Reactions . | . . . . . . Alert | -11 -10 -9 -9 -7 -7 ------- Run | Yrd Mat Mat Min Zio Dee Peak Influence 257 | . 209 257 144 . . Initial 100 | . . 24 100 . . Average 79 | . 116 63 67 . . Maximum Alert Level 1 | . 1 1 . . . Low Security (%) 94 | 100 93 91 100 . . Level 1 5 | . 6 8 . . . Level 2 . | . . . . . . Level 3 . | . . . . . . Level 4 . | . . . . . . Level 5 . | . . . . . . High Security . | . . . . . . Max Security . | . . . . . . Squads Dispatched 5 | . 4 1 . . . Investigation 2 | . 2 . . . . Extermination . | . . . . . . Reinforcement 3 | . 2 1 . . . Assault . | . . . . . . Garrison . | . . . . . . Intercept . | . . . . . . Searches Triggered . | . . . . . . Construction Impeded . | . . . . . . Haulers Reinforced . | . . . . . . Active Scanning Responses . | . . . . . . Cargo Convoy Interrupts . | . . . . . . Stealth | -11 -10 -9 -9 -7 -7 --------- Run | Yrd Mat Mat Min Zio Dee Distress Signals 5 | . 1 3 1 . . Communications Jammed . | . . . . . . Distress Signals . | . . . . . . Times Spotted 55 | . 21 19 6 . 9 Peak Tracking Total 7 | . 4 5 2 . 7 Tactical Retreats 2 | . 1 . 1 . . Traps | -11 -10 -9 -9 -7 -7 ------- Run | Yrd Mat Mat Min Zio Dee Traps Triggered . | . . . . . . Indirectly . | . . . . . . Trap Hack Attempts . | . . . . . . Triggered . | . . . . . . Disarmed . | . . . . . . Reprogrammed . | . . . . . . Reused . | . . . . . . Traps Extracted . | . . . . . . Installed . | . . . . . . Triggered . | . . . . . . Machines | -11 -10 -9 -9 -7 -7 ---------- Run | Yrd Mat Mat Min Zio Dee Machines Disabled 4 | . 1 3 . . . Max in Single Turn 1 | . 1 1 . . . Machines Repaired . | . . . . . . Machines Dismantled . | . . . . . . Machines Sabotaged . | . . . . . . Overloaded Fab Kills . | . . . . . . Hacking | -11 -10 -9 -9 -7 -7 --------- Run | Yrd Mat Mat Min Zio Dee Machines Accessed 3 | . 2 . 1 . . Terminals 3 | . 2 . 1 . . Fabricators . | . . . . . . Repair Stations . | . . . . . . Recycling Units . | . . . . . . Scanalyzers . | . . . . . . Garrison Access . | . . . . . . Total Hacks 8 | . 6 . 2 . . Successful 4 | . 2 . 2 . . Failed 4 | . 4 . . . . Catastrophic 1 | . 1 . . . . Database Lockouts . | . . . . . . Manual 5 | . . . . 5 . Terminals 8 | . 6 . 2 . . Fabricators . | . . . . . . Repair Stations . | . . . . . . Recycling Units . | . . . . . . Scanalyzers . | . . . . . . Garrison Access . | . . . . . . Terminal Hacks 4 | . 2 . 2 . . Branch Access Points 1 | . 1 . . . . Locate Traps 1 | . 1 . . . . Dispatch Records 1 | . . . 1 . . Zone Layout 1 | . . . 1 . . Fabricator Hacks . | . . . . . . Repair Station Hacks . | . . . . . . Recycling Unit Hacks . | . . . . . . Scanalyzer . | . . . . . . Garrison Access Hacks . | . . . . . . Unauthorized Hacks . | . . . . . . Terminals . | . . . . . . Fabricators . | . . . . . . Repair Stations . | . . . . . . Recycling Units . | . . . . . . Scanalyzers . | . . . . . . Garrison Access . | . . . . . . Data Cores Recovered . | . . . . . . Used . | . . . . . . Hacking Detections 3 | . 2 . 1 . . Full Trace Events 2 | . 2 . . . . Feedback Events . | . . . . . . Feedback Blocked . | . . . . . . Robot Schematics Acquired 3 | . . . . 3 . Robots Built . | . . . . . . Authchips . | . . . . . . Time . | . . . . . . Total Robot Build Rating . | . . . . . . Part Schematics Acquired 15 | . . . . 15 . Parts Built . | . . . . . . Authchips . | . . . . . . Time . | . . . . . . Total Part Build Rating . | . . . . . . Parts Repaired . | . . . . . . Time . | . . . . . . Parts Recycled . | . . . . . . Recycled Matter . | . . . . . . Retrieved Matter . | . . . . . . Retrieved Components . | . . . . . . Parts Scanalyzed . | . . . . . . Part Schematics Acquired . | . . . . . . Parts Damaged . | . . . . . . Bothacking | -11 -10 -9 -9 -7 -7 ------------ Run | Yrd Mat Mat Min Zio Dee Used RIF Installer . | . . . . . . Robots Hacked . | . . . . . . Non-combat . | . . . . . . Combat . | . . . . . . Robot Hacks Applied . | . . . . . . Relay Couplers Released . | . . . . . . Fabnet Peak Effective % . | . . . . . . Robots Rewired . | . . . . . . Allies Hacked . | . . . . . . Hacks Repelled . | . . . . . . Allies | -11 -10 -9 -9 -7 -7 -------- Run | Yrd Mat Mat Min Zio Dee Total Allies 4 | . . . . 4 . Largest Group 4 | . . . . 4 3 Highest-Rated Group 156 | . . . . 156 115 Highest-Rated Ally 41 | . . . . 41 40 Total Orders . | . . . . . . Ally Attacks . | . . . . . . Total Damage . | . . . . . . Kills . | . . . . . . Allies Corrupted . | . . . . . . Allies Melted . | . . . . . . Intel | -11 -10 -9 -9 -7 -7 ------- Run | Yrd Mat Mat Min Zio Dee Robot Analysis Total . | . . . . . . Derelict Logs Recovered 2 | . . . 1 1 . Drone Launches . | . . . . . . Drone Recoveries . | . . . . . . Exploration | -11 -10 -9 -9 -7 -7 ------------- Run | Yrd Mat Mat Min Zio Dee Turns Passed 5420 | 45 816 1069 721 2306 463 Spaces Moved 3024 | 46 388 505 386 1427 272 Core 15 | 14 . . . . 1 Treads 2711 | . 122 505 386 1427 271 Legs . | . . . . . . Wheels 298 | 32 266 . . . . Hover . | . . . . . . Flight . | . . . . . . Fastest Speed 50 | 50 80 160 160 160 160 Average Speed 159 | 70 140 176 160 160 162 Slowest Speed 500 | 80 240 320 240 160 500 Overloaded Moves . | . . . . . . Propulsion Burnouts . | . . . . . . Robots Hopped . | . . . . . . Cave-ins Triggered . | . . . . . . Exploration Rate (%) 49 | 3 64 35 69 91 34 Regions Visited 5 Branch Regions 3 Pre-discovered Areas 2 | . . . . 2 . Known Exits Taken 1 | . . . 1 . . Unknown Exits Taken 4 | 1 1 1 . 1 . Scrap Searched 4 | . . . 1 3 . Spaces Dug . | . . . . . . Terrain Destroyed . | . . . . . . Melee . | . . . . . . Projectile . | . . . . . . AOE . | . . . . . . Terrain Rammed . | . . . . . . Walls Destroyed . | . . . . . . Machines Disabled . | . . . . . . Actions | -11 -10 -9 -9 -7 -7 --------- Run | Yrd Mat Mat Min Zio Dee Total 3336 | 58 495 605 445 1452 281 Wait 55 | . . 16 30 9 . Move 3019 | 45 387 504 385 1426 272 Hop . | . . . . . . Pick Up 46 | 8 9 19 3 7 . Fast Attach . | . . . . . . Attach 18 | 5 3 7 2 . 1 Detach 1 | . . 1 . . . Swap 22 | . 3 11 4 3 1 Drop 15 | . 2 6 . 7 . Fire 154 | . 87 40 20 . 7 Melee . | . . . . . . Ram . | . . . . . . Kick . | . . . . . . Crush 5 | . 4 1 . . . Escape Stasis . | . . . . . . Rewire 1 | . . . 1 . . Trap . | . . . . . . Miscellaneous . | . . . . . . Route ------- -11/Scrapyard -10/Materials (discovered 3 exits: *Mat x2 / Min) -9/Materials -9/Mines (discovered 3 exits: *Mat x2 / *Zio) -7/Zion (discovered 2 exits: [*Dee] / *Pro) -7/Deep Caves History --------- Turn | Location | Event 11 | -11/Scrapyard | Discovered new exit (range 16) 46 | -11/Scrapyard | Entered Materials 140 | -10/Materials | Discovered new exit (range 16) 307 | -10/Materials | Build established: Mutant 498 | -10/Materials | Identified exit to Mines 809 | -10/Materials | Discovered new exit (range 14) 862 | -10/Materials | Entered another Materials area 862 | -9/Materials | Evolved 2 slots: Weapon x2 1303 | -9/Materials | Build established: Tank 1836 | -9/Materials | Discovered new exit (range 6) 1931 | -9/Materials | Entered Mines 1986 | -9/Mines | Discovered new exit (range 15) 1994 | -9/Mines | Learned 2 Materials zone layouts 2029 | -9/Mines | Met a Derelict bent on vengeance 2110 | -9/Mines | Build established: Gunner 2143 | -9/Mines | Excavation squad dispatched 2143 | -9/Mines | A large section of the Mines collapsed 2623 | -9/Mines | A Derelict revealed a hidden shortcut to a safe place 2625 | -9/Mines | Discovered new exit (range 9) 2630 | -9/Mines | Identified exit to Zion 2640 | -9/Mines | Identified exit to Materials 2652 | -9/Mines | Entered Zion 2720 | -7/Zion | Learned 8 Factory zone layouts 2884 | -7/Zion | Discovered new exit (range 15) 2907 | -7/Zion | Identified exit to Proximity Caves 3217 | -7/Zion | Learned location of Armory (-3) 3343 | -7/Zion | Found Prototype Device 3392 | -7/Zion | Learned Factory emergency access door positions 3606 | -7/Zion | Loaded intel: 4 derelict terminal locations 3839 | -7/Zion | Imprinted 3841 | -7/Zion | Declared Zion's savior 4125 | -7/Zion | Acquired unknown access codes intercepted by a Zionite 4209 | -7/Zion | Learned location of Warlord (-4) 4456 | -7/Zion | Given the Hacking Drone Bay 4460 | -7/Zion | Found Prototype Device 4461 | -7/Zion | Identified Hacking Drone Bay 4768 | -7/Zion | Build established: Skirmisher 4920 | -7/Zion | Opened final containment barrier to the Deep Caves 4947 | -7/Zion | Discovered new exit (range 3) 4947 | -7/Zion | Saw the warning signs outside the Deep Caves entrance 4958 | -7/Zion | Entered Deep Caves 4958 | -7/Deep Caves | Accompanied by 4 allies 5388 | -7/Deep Caves | Attacked by Z-Imprinter 5402 | -7/Deep Caves | Z-Facility disabled 5413 | -7/Deep Caves | Core integrity fell below 50% 5421 | -7/Deep Caves | Destroyed by Z-Imprinter with Zionite Laser-M Last Messages --------------- Acquired 11 matter. Acquired 2 matter. Acquired 13 matter. Acquired 10 matter. Acquired 1 matter. 8M-DHV(o) destroyed. NEW_ZION: Z-Facility proximity alert. Z-Imprinter: GET AWAY FROM HERE! I've worked too hard for our future just to have you ruin everything! Acquired 8 matter. Lgt. Cannon destroyed. Acquired 2 matter. Z-Facility disabled. Lgt. Assault Rifle destroyed. Imp. Treads destroyed. Beam Rifle destroyed. Lgt. Armor Plating destroyed. Autogun destroyed. Imp. Treads destroyed. Map ----- +----------------------------------------------------+ | ??????????????????????????????????????????????? | | ??????????????????????????????????????????????? | | ?????????????????????????????????????????????? | | ?????????????????????????????????????????????? | | ?????????????????????????????????????????????? | | ????????????????????????????????????????????? | | ????????????????????????????????????????????? | | ???????????????????????????????????????????? | | ???????????????????????????????????????????? | | ???????????????????????????????????????????? | | ???????????????????????????????????????????? | | ????????????????????????????????????? ?? | | ?????????????????? ????????????? | | ???????????????? ?????????????? | | ?????????????? ????????????? | | ?????????????? ????????????? | | ????????????? ??????????? | | ????????????? """????????"" | | ???????????? """"?? ????? | | ???????????? """""" ???? | | ???????????? """""" ?"""" | | ??????????? """""" """"""" | | ??????????? """" """"""" | | ?????????? """" """"""" | | ?????????? """" """"" | | ?????????? @ """ """ | | ?????????? """" | | ?????????? Iz" """"""""" / | | ?????????? z """"" " = | | ?????????? | | ?????????? | | ??????????? | | ??????????? | | ???????????? z | | ???????????? z | | ???????????? z ##### | | ?????????????## ### ####???### | | ??????????????# ??## ##????????### | | ??????????????###????### #####???????????? | | ???????????????????????###########???????????????? | | ?????????????????????????????????????????????????? | | | | | | | | | | | | | | | | | | | +----------------------------------------------------+ Best States ------------- Heat Dissipation 38 Energy Generation 14 Energy Capacity 280 Matter Stores 300 Matter Capacity 300 Sight Range 18 Robot Scan Range 15 Terrain Scan Density 10 Armor Coverage 225 Evasion (%) 50 Recoil Reduction 2 Item Schematics ----------------- Mak. Salvage Targeting Computer | -7/Zion | Archive Mak. Hover Unit | -7/Zion | Archive Adv. Terrain Scanner | -7/Zion | Archive Mak. System Shield | -7/Zion | Archive Plasma Rifle | -7/Zion | Archive Dynamic Insulation System | -7/Zion | Archive Hvy. Phase Cannon | -7/Zion | Archive EM Disruption Field | -7/Zion | Archive Imp. EM Pulse Cannon | -7/Zion | Archive Hvy. Rocket Launcher | -7/Zion | Archive Hvy. Flak Cannon | -7/Zion | Archive Mak. Power Source | -7/Zion | Archive Adv. Sensor Array | -7/Zion | Archive Transmission Jammer | -7/Zion | Archive Tesla Rifle | -7/Zion | Archive Robot Schematics ------------------ B-48 Gladiator | -7/Zion | Archive W-25 Informer | -7/Zion | Archive R-06 Scavenger | -7/Zion | Archive Fabricated ------------ Nothing Alien Tech Used ----------------- None Achievements -------------- Adventurer Hey, That's Mine! Robot Respite Signs Are For Wimps The One Challenges ------------ None Game ------ Seed SpectralMetafieldRay Manual? 0 Play Time 00:57:06 Cumulative 6.8 hours Start 2024.07.08 @ 12:31:13 End 2024.07.10 @ 11:14:52 Sessions 3 Manual Loads 0 Difficulty Rogue Special Mode None Game No. 16 Rogue 16 Adventurer 0 Explorer 0 Win Type - Total 0 Types 0/0/0/0/0/0/0/0/0 Lore% 14 Gallery% 8 Achievement% 10 Wizard Run 0 Options --------- Layout 1 ASCII 0 Keyboard 0 Movement Arrows Keybinds 0 Fullscreen 1 Font 28/Dina Map View 50x43 Zoom Use 0% Tactical HUD 0 Map Filters NONE Filters NONE Steam 1 RUN: 4ceaf070-8b53-432b-bc66-669b9921ad98